Workbook

Sheet Despesas
B3: Festa de Lançamento do Produto
B4: DETALHES DAS DESPESAS
B7: Despesas totais | C7: Valor estimado | D7: Real | F7: Programa | G7: Valor estimado | H7: Real
C8: =DespesasLocal[[#Totals],[Valor estimado]]+DespesasDecoração[[#Totals],[Valor estimado]]+DespesasPublicidade[[#Totals],[Valor estimado]]+DepesasDiversas[[#Totals],[Valor estimado]]+DespesasBebidas[[#Totals],[Valor estimado]]+DespesasPrograma[[#Totals],[Valor estimado]]+DespesasPremiações[[#Totals],[Valor estimado]] -> R$ 2,090.00 | D8: =DespesasLocal[[#Totals],[Real]]+DespesasDecoração[[#Totals],[Real]]+DespesasPublicidade[[#Totals],[Real]]+DepesasDiversas[[#Totals],[Real]]+DespesasBebidas[[#Totals],[Real]]+DespesasPrograma[[#Totals],[Real]]+DespesasPremiações[[#Totals],[Real]] -> R$ 1,640.00 | F8: Executores | G8: R$ 750.00 | H8: R$ 700.00
F9: Alto-Falantes | G9: R$ 150.00 | H9: R$ 0.00
F10: Viagem
B11: Site | C11: Valor estimado | D11: Real | F11: Hotel
B12: Taxas da sala e espaço | C12: R$ 500.00 | D12: R$ 450.00 | F12: Outros
B13: Equipe de site | F13: Total | G13: =SUBTOTAL(109,DespesasPrograma[Valor estimado]) -> R$ 900.00 | H13: =SUBTOTAL(109,DespesasPrograma[Real]) -> R$ 700.00
B14: Equipamentos
B15: Mesas e cadeiras | F15: Publicidade | G15: Valor estimado | H15: Real
B16: Total | C16: =SUBTOTAL(109,DespesasLocal[Valor estimado]) -> R$ 500.00 | D16: =SUBTOTAL(109,DespesasLocal[Real]) -> R$ 450.00 | F16: Trabalho com elementos gráficos
F17: Cópia de fotos/impressão | G17: R$ 20.00 | H17: R$ 20.00
B18: Decorações | C18: Valor estimado | D18: Real | F18: Postagem
B19: Flores | C19: R$ 200.00 | D19: R$ 100.00 | F19: Total | G19: =SUBTOTAL(109,DespesasPublicidade[Valor estimado]) -> R$ 20.00 | H19: =SUBTOTAL(109,DespesasPublicidade[Real]) -> R$ 20.00
B20: Velas
B21: Iluminação | F21: Prêmios | G21: Valor estimado | H21: Real
B22: Balões | F22: Faixas de Opções/Troféus
B23: Fornecedores de papel | F23: Presentes | G23: R$ 100.00 | H23: R$ 100.00
B24: Total | C24: =SUBTOTAL(109,DespesasDecoração[Valor estimado]) -> R$ 200.00 | D24: =SUBTOTAL(109,DespesasDecoração[Real]) -> R$ 100.00 | F24: Total | G24: =SUBTOTAL(109,DespesasPremiações[Valor estimado]) -> R$ 100.00 | H24: =SUBTOTAL(109,DespesasPremiações[Real]) -> R$ 100.00
B26: Coffee break | C26: Valor estimado | D26: Real | F26: Diversos | G26: Valor estimado | H26: Real
B27: Alimentação | F27: Telefone | G27: R$ 50.00 | H27: R$ 50.00
B28: Bebidas | C28: R$ 220.00 | D28: R$ 120.00 | F28: Transporte | G28: R$ 20.00 | H28: R$ 20.00
B29: Roupa de mesa | C29: R$ 80.00 | D29: R$ 80.00 | F29: Fornecedores de material de escritório
B30: Funcionários e gorjetas | F30: Serviços de fax
B31: Total | C31: =SUBTOTAL(109,DespesasBebidas[Valor estimado]) -> R$ 300.00 | D31: =SUBTOTAL(109,DespesasBebidas[Real]) -> R$ 200.00 | F31: Total | G31: =SUBTOTAL(109,DepesasDiversas[Valor estimado]) -> R$ 70.00 | H31: =SUBTOTAL(109,DepesasDiversas[Real]) -> R$ 70.00

Sheet Renda
B3: =Despesas!B3 -> Festa de Lançamento do Produto
B4: DETALHES DE RENDA
B7: Total da receita | C7: Valor estimado | D7: Real
C8: =SUM(Admissão[[#Totals],[Receita estimada]],AnúnciosNoPrograma[[#Totals],[Receita estimada]],ExpositoresEFornecedores[[#Totals],[Receita estimada]],VendasDeItens[[#Totals],[Receita estimada]]) -> R$ 4,450.00 | D8: =SUM(Admissão[[#Totals],[Receita real]],AnúnciosNoPrograma[[#Totals],[Receita real]],ExpositoresEFornecedores[[#Totals],[Receita real]],VendasDeItens[[#Totals],[Receita real]]) -> R$ 4,170.00
B10: Admissão
B11: Tipo | C11: Valor estimado | D11: Real | E11: Preço | F11: Receita estimada | G11: Receita real
B12: Adultos | C12: 30 | D12: 25 | E12: R$ 20.00 | F12: =C12*E12 -> R$ 600.00 | G12: =D12*E12 -> R$ 500.00
B13: Crianças | C13: 20 | D13: 22 | E13: R$ 10.00 | F13: =C13*E13 -> R$ 200.00 | G13: =D13*E13 -> R$ 220.00
B14: Outros | C14: 10 | D14: 10 | E14: R$ 10.00 | F14: =C14*E14 -> R$ 100.00 | G14: =D14*E14 -> R$ 100.00
B15: Total | C15: =SUBTOTAL(109,Admissão[Valor estimado]) -> 60 | D15: =SUBTOTAL(109,Admissão[Real]) -> 57 | F15: =SUBTOTAL(109,Admissão[Receita estimada]) -> R$ 900.00 | G15: =SUBTOTAL(109,Admissão[Receita real]) -> R$ 820.00
B17: Anúncios no programa
B18: Tipo | C18: Valor estimado | D18: Real | E18: Preço | F18: Receita estimada | G18: Receita real
B19: Capas | C19: 2 | D19: 4 | E19: R$ 50.00 | F19: =C19*E19 -> R$ 100.00 | G19: =D19*E19 -> R$ 200.00
B20: Meia página | C20: 2 | D20: 2 | E20: R$ 30.00 | F20: =C20*E20 -> R$ 60.00 | G20: =D20*E20 -> R$ 60.00
B21: Um quarto de página | C21: 2 | D21: 2 | E21: R$ 20.00 | F21: =C21*E21 -> R$ 40.00 | G21: =D21*E21 -> R$ 40.00
B22: Total | C22: =SUBTOTAL(109,AnúnciosNoPrograma[Valor estimado]) -> 6 | D22: =SUBTOTAL(109,AnúnciosNoPrograma[Real]) -> 8 | F22: =SUBTOTAL(109,AnúnciosNoPrograma[Receita estimada]) -> R$ 200.00 | G22: =SUBTOTAL(109,AnúnciosNoPrograma[Receita real]) -> R$ 300.00
B24: Expositores/fornecedores
B25: Tipo | C25: Valor estimado | D25: Real | E25: Preço | F25: Receita estimada | G25: Receita real
B26: Estandes grandes | C26: 5 | D26: 5 | E26: R$ 300.00 | F26: =C26*E26 -> R$ 1,500.00 | G26: =D26*E26 -> R$ 1,500.00
B27: Estandes médias | C27: 5 | D27: 4 | E27: R$ 200.00 | F27: =C27*E27 -> R$ 1,000.00 | G27: =D27*E27 -> R$ 800.00
B28: Estandes pequenos | C28: 1 | D28: 0 | E28: R$ 100.00 | F28: =C28*E28 -> R$ 100.00 | G28: =D28*E28 -> R$ 0.00
B29: Total | C29: =SUBTOTAL(109,ExpositoresEFornecedores[Valor estimado]) -> 11 | D29: =SUBTOTAL(109,ExpositoresEFornecedores[Real]) -> 9 | F29: =SUBTOTAL(109,ExpositoresEFornecedores[Receita estimada]) -> R$ 2,600.00 | G29: =SUBTOTAL(109,ExpositoresEFornecedores[Receita real]) -> R$ 2,300.00
B31: Vendas de itens
B32: Tipo | C32: Valor estimado | D32: Real | E32: Preço | F32: Receita estimada | G32: Receita real
B33: Item 1 | C33: 2 | D33: 2 | E33: R$ 150.00 | F33: =C33*E33 -> R$ 300.00 | G33: =D33*E33 -> R$ 300.00
B34: Item 2 | C34: 5 | D34: 5 | E34: R$ 50.00 | F34: =C34*E34 -> R$ 250.00 | G34: =D34*E34 -> R$ 250.00
B35: Item 3 | C35: 5 | D35: 5 | E35: R$ 20.00 | F35: =C35*E35 -> R$ 100.00 | G35: =D35*E35 -> R$ 100.00
B36: Item 4 | C36: 5 | D36: 5 | E36: R$ 20.00 | F36: =C36*E36 -> R$ 100.00 | G36: =D36*E36 -> R$ 100.00
B37: Total | C37: =SUBTOTAL(109,VendasDeItens[Valor estimado]) -> 17 | D37: =SUBTOTAL(109,VendasDeItens[Real]) -> 17 | F37: =SUBTOTAL(109,VendasDeItens[Receita estimada]) -> R$ 750.00 | G37: =SUBTOTAL(109,VendasDeItens[Receita real]) -> R$ 750.00

Sheet Resumo de lucros e perdas
B3: =Despesas!B3 -> Festa de Lançamento do Produto
B4: RESUMO DE LUCROS + PERDAS
B7: Resumo de despesas | C7: Valor estimado | D7: Real | F7: Despesas reais | L7: Classificação | M7: Despesas | N7: Estimativa | O7: Real | P7: Valor de Classificação
B8: =VLOOKUP(1,$L$8:$O$14,2,FALSE) -> Programa | C8: =VLOOKUP(1,$L$8:$O$14,3,FALSE) -> R$ 900.00 | D8: =VLOOKUP(1,$L$8:$O$14,4,FALSE) -> R$ 700.00 | L8: =_xlfn.RANK.AVG(P8,$P$8:$P$14) -> 2 | M8: Site | N8: =DespesasLocal[[#Totals],[Valor estimado]] -> R$ 500 | O8: =DespesasLocal[[#Totals],[Real]] -> R$ 450 | P8: =O8+ROW(O8)/10000 -> 450.0008
B9: =VLOOKUP(2,$L$8:$O$14,2,FALSE) -> Site | C9: =VLOOKUP(2,$L$8:$O$14,3,FALSE) -> R$ 500.00 | D9: =VLOOKUP(2,$L$8:$O$14,4,FALSE) -> R$ 450.00 | L9: 5 | M9: Decorações | N9: =DespesasDecoração[[#Totals],[Valor estimado]] -> R$ 200 | O9: =DespesasDecoração[[#Totals],[Real]] -> R$ 100 | P9: =O9+ROW(O9)/10000 -> 100.0009
B10: =VLOOKUP(3,$L$8:$O$14,2,FALSE) -> Coffee break | C10: =VLOOKUP(3,$L$8:$O$14,3,FALSE) -> R$ 300.00 | D10: =VLOOKUP(3,$L$8:$O$14,4,FALSE) -> R$ 200.00 | L10: 3 | M10: Coffee break | N10: =DespesasBebidas[[#Totals],[Valor estimado]] -> R$ 300 | O10: =DespesasBebidas[[#Totals],[Real]] -> R$ 200 | P10: 200.0010
B11: =VLOOKUP(4,$L$8:$O$14,2,FALSE) -> Prêmios | C11: =VLOOKUP(4,$L$8:$O$14,3,FALSE) -> R$ 100.00 | D11: =VLOOKUP(4,$L$8:$O$14,4,FALSE) -> R$ 100.00 | L11: 1 | M11: Programa | N11: =DespesasPrograma[[#Totals],[Valor estimado]] -> R$ 900 | O11: =DespesasPrograma[[#Totals],[Real]] -> R$ 700 | P11: 700.0011
B12: =VLOOKUP(5,$L$8:$O$14,2,FALSE) -> Decorações | C12: =VLOOKUP(5,$L$8:$O$14,3,FALSE) -> R$ 200.00 | D12: =VLOOKUP(5,$L$8:$O$14,4,FALSE) -> R$ 100.00 | L12: 7 | M12: Publicidade | N12: =DespesasPublicidade[[#Totals],[Valor estimado]] -> R$ 20 | O12: =DespesasPublicidade[[#Totals],[Real]] -> R$ 20 | P12: 20.0012
B13: =VLOOKUP(6,$L$8:$O$14,2,FALSE) -> Diversos | C13: =VLOOKUP(6,$L$8:$O$14,3,FALSE) -> R$ 70.00 | D13: =VLOOKUP(6,$L$8:$O$14,4,FALSE) -> R$ 70.00 | L13: 4 | M13: Prêmios | N13: =DespesasPremiações[[#Totals],[Valor estimado]] -> R$ 100 | O13: =DespesasPremiações[[#Totals],[Real]] -> R$ 100 | P13: 100.0013
B14: =VLOOKUP(7,$L$8:$O$14,2,FALSE) -> Publicidade | C14: =VLOOKUP(7,$L$8:$O$14,3,FALSE) -> R$ 20.00 | D14: =VLOOKUP(7,$L$8:$O$14,4,FALSE) -> R$ 20.00 | L14: 6 | M14: Diversos | N14: =DepesasDiversas[[#Totals],[Valor estimado]] -> R$ 70 | O14: =DepesasDiversas[[#Totals],[Real]] -> R$ 70 | P14: 70.0014
B15: Total | C15: =SUBTOTAL(109,ResumoDeDespesas[Valor estimado]) -> R$ 2,090.00 | D15: =SUBTOTAL(109,ResumoDeDespesas[Real]) -> R$ 1,640.00
B17: Resumo da renda | C17: Valor estimado | D17: Real | F17: Receita real | L17: Classificação | M17: Renda | N17: Valor estimado | O17: Real | P17: Valor de Classificação
B18: =VLOOKUP(1,$L$18:$O$21,2,FALSE) -> Expositores/fornecedores | C18: =VLOOKUP(1,$L$18:$O$21,3,FALSE) -> R$ 2,600.00 | D18: =VLOOKUP(1,$L$18:$O$21,4,FALSE) -> R$ 2,300.00 | L18: =_xlfn.RANK.AVG(P18,$P$18:$P$21) -> 2 | M18: Admissão | N18: =Admissão[[#Totals],[Receita estimada]] -> R$ 900 | O18: =Admissão[[#Totals],[Receita real]] -> R$ 820 | P18: =O18+ROW(O18)/10000 -> 820.0018
B19: =VLOOKUP(2,$L$18:$O$21,2,FALSE) -> Admissão | C19: =VLOOKUP(2,$L$18:$O$21,3,FALSE) -> R$ 900.00 | D19: =VLOOKUP(2,$L$18:$O$21,4,FALSE) -> R$ 820.00 | L19: =_xlfn.RANK.AVG(P19,$P$18:$P$21) -> 4 | M19: Anúncios no programa | N19: =AnúnciosNoPrograma[[#Totals],[Receita estimada]] -> R$ 200 | O19: =AnúnciosNoPrograma[[#Totals],[Receita real]] -> R$ 300 | P19: 300.0019
B20: Vendas de itens | C20: =VLOOKUP(3,$L$18:$O$21,3,FALSE) -> R$ 750.00 | D20: =VLOOKUP(3,$L$18:$O$21,4,FALSE) -> R$ 750.00 | L20: 1 | M20: Expositores/fornecedores | N20: =ExpositoresEFornecedores[[#Totals],[Receita estimada]] -> R$ 2,600 | O20: =ExpositoresEFornecedores[[#Totals],[Receita real]] -> R$ 2,300 | P20: 2,300.0020
B21: =VLOOKUP(4,$L$18:$O$21,2,FALSE) -> Anúncios no programa | C21: =VLOOKUP(4,$L$18:$O$21,3,FALSE) -> R$ 200.00 | D21: =VLOOKUP(4,$L$18:$O$21,4,FALSE) -> R$ 300.00 | L21: 3 | M21: Vendas de itens | N21: =VendasDeItens[[#Totals],[Receita estimada]] -> R$ 750 | O21: =VendasDeItens[[#Totals],[Receita real]] -> R$ 750 | P21: 750.0021
B22: Total | C22: =SUBTOTAL(109,ResumoDerenda[Valor estimado]) -> R$ 4,450.00 | D22: =SUBTOTAL(109,ResumoDerenda[Real]) -> R$ 4,170.00
B24: Resumo de lucros e perdas | C24: Valor estimado | D24: Real
B25: Total da receita | C25: =ResumoDerenda[[#Totals],[Valor estimado]] -> R$ 4,450.00 | D25: =ResumoDerenda[[#Totals],[Real]] -> R$ 4,170.00
B26: Despesas totais | C26: =ResumoDeDespesas[[#Totals],[Valor estimado]] -> R$ 2,090.00 | D26: =ResumoDeDespesas[[#Totals],[Real]] -> R$ 1,640.00
B27: Lucro ou (Perda) | C27: =C25-C26 -> R$ 2,360.00 | D27: =D25-D26 -> R$ 2,530.00
B29: Relação despesas/lucro (perda) | E29: Custos estimados versus reais
